[Event "Fagernes Open 2021"]
[Site "Fagernes"]
[Date "2021.10.16"]
[Round "8.14"]
[White "Sekkingstad, Thomas"]
[Black "Selvik, Elma"]
[Result "1-0"]
[ECO "D18"]
[WhiteElo "1812"]
[BlackElo "1352"]
[Annotator "NA"]
[PlyCount "69"]
[EventDate "2021.10.10"]
[EventCountry "NOR"]
[SourceTitle "playchess.com"]
[Source "ChessBase"]
[SourceQuality "1"]
[TimeControl "40/5400+30:1800+30"]

1. d4 {[%emt 0:00:00]} d5 {[%emt 0:00:00]} 2. c4 {[%emt 0:00:00]} c6 {[%emt 0:00:00]} 3. Nc3 {[%emt 0:00:00]} Nf6 {[%emt 0:00:00]} 4. Nf3 {[%emt 0:00:00]} dxc4 {[%emt 0:00:00]} 5. a4 {[%emt 0:00:00]} Bf5 {[%emt 0:00:00]} 6. e3 {[%emt 0:00:00]} e6 {[%emt 0:00:00]} 7. Bxc4 {[%emt 0:00:00]} Nbd7 {[%emt 0:00:00]} 8. h3 {[%emt 0:00:00]} Be7 {[%emt 0:00:00]} 9. Qb3 {[%emt 0:00:00]} Nb6 {[%emt 0:05:15]} 10. Be2 {[%emt 0:00:03]} a5 {[%emt 0:02:13]} 11. O-O {[%emt 0:10:29]} h6 {[%emt 0:03:59]} 12. Ne5 {[%emt 0:05:10]} O-O {[%emt 0:03:02]} 13. Rd1 {[%emt 0:02:21]} Qc7 {[%emt 0:04:37]} 14. f3 {[%emt 0:00:40]} Rfd8 {[%emt 0:05:28]} 15. e4 {[%emt 0:01:38]} Bh7 {[%emt 0:03:09]} 16. Be3 {[%emt 0:00:51]} Nfd7 {[%emt 0:08:39]} 17. Nd3 {[%emt 0:03:01]} c5 {[%emt 0:05:37]} 18. Nb5 {[%emt 0:05:05]} Qc8 {[%emt 0:04:43]} 19. Nxc5 {[%emt 0:01:36]} Nxc5 {[%emt 0:03:15]} 20. dxc5 {[%emt 0:00:10]} Rxd1+ {[%emt 0:01:34]} 21. Rxd1 {[%emt 0:00:05]} Bxc5 {[%emt 0:01:20]} 22. Rc1 {[%emt 0:01:19]} Nd7 {[%emt 0:11:20]} 23. Nd4 {[%emt 0:07:35]} e5 {[%emt 0:09:27]} 24. Nb5 {[%emt 0:01:45]} b6 {[%emt 0:03:09]} 25. Bc4 {[%emt 0:01:23]} Bg6 {[%emt 0:02:30]} 26. Bd5 {[%emt 0:00:45]} Rb8 {[%emt 0:02:49]} 27. Na7 {[%emt 0:01:42]} Qf8 {[%emt 0:06:04]} 28. Nc6 {[%emt 0:02:14]} Rc8 {[%emt 0:01:35]} 29. Bxc5 {[%emt 0:00:19]} bxc5 {[%emt 0:04:43]} 30. Qb7 {[%emt 0:00:40]} Qe8 {[%emt 0:02:58]} 31. Qxc8 {[%emt 0:00:35]} Kf8 {[%emt 0:02:07]} 32. Qxe8+ {[%emt 0:00:35]} Kxe8 {[%emt 0:00:10]} 33. Nxa5 {[%emt 0:00:04]} f6 {[%emt 0:00:55]} 34. Nb7 {[%emt 0:00:12]} Bf7 {[%emt 0:00:51]} 35. Nd6+ {[%emt 0:00:07]} 1-0

[Event "Fagernes Open 2021"]
[Site "Fagernes"]
[Date "2021.10.16"]
[Round "8.15"]
[White "Andersen, Guttorm"]
[Black "Eriksen, Olai Dyrhaug"]
[Result "0-1"]
[ECO "B12"]
[WhiteElo "1731"]
[BlackElo "1809"]
[Annotator "NA"]
[PlyCount "64"]
[EventDate "2021.10.10"]
[EventCountry "NOR"]
[SourceTitle "playchess.com"]
[Source "ChessBase"]
[SourceQuality "1"]
[TimeControl "40/5400+30:1800+30"]

1. e4 {[%emt 0:00:00]} c6 {[%emt 0:00:00]} 2. d4 {[%emt 0:00:00]} d5 {[%emt 0:00:00]} 3. f3 {[%emt 0:00:00]} g6 {[%emt 0:00:00]} 4. e5 {[%emt 0:00:00]} Bg7 {[%emt 0:00:00]} 5. f4 {[%emt 0:01:11]} h5 {[%emt 0:01:38]} 6. Nf3 {[%emt 0:05:28]} Bg4 {[%emt 0:07:34]} 7. Bd3 {[%emt 0:06:10]} Nh6 {[%emt 0:05:50]} 8. O-O {[%emt 0:02:44]} O-O {[%emt 0:03:49]} 9. Nc3 {[%emt 0:03:37]} Nf5 {[%emt 0:18:38]} 10. Ne2 {[%emt 0:01:24]} e6 {[%emt 0:03:58]} 11. c3 {[%emt 0:02:38]} Nd7 {[%emt 0:03:50]} 12. Qe1 {[%emt 0:04:26]} Qb6 {[%emt 0:04:27]} 13. Kh1 {[%emt 0:02:50]} c5 {[%emt 0:03:44]} 14. Bxf5 {[%emt 0:07:56]} Bxf5 {[%emt 0:00:22]} 15. Ng3 {[%emt 0:01:54]} Bd3 {[%emt 0:01:31]} 16. Rg1 {[%emt 0:03:15]} cxd4 {[%emt 0:02:53]} 17. Nxd4 {[%emt 0:03:20]} Nc5 {[%emt 0:04:34]} 18. Qd1 {[%emt 0:06:46]} h4 {[%emt 0:03:38]} 19. Nge2 {[%emt 0:02:09]} Be4 {[%emt 0:02:53]} 20. h3 {[%emt 0:00:44]} Nd3 {[%emt 0:02:53]} 21. Qb3 {[%emt 0:03:30]} Nf2+ {[%emt 0:08:21]} 22. Kh2 {[%emt 0:00:11]} Qxb3 {[%emt 0:01:27]} 23. Nxb3 {[%emt 0:03:32]} g5 {[%emt 0:01:57]} 24. Rf1 {[%emt 0:04:27]} Nd3 {[%emt 0:00:27]} 25. fxg5 {[%emt 0:12:26]} Bxe5+ {[%emt 0:00:45]} 26. Kg1 {[%emt 0:00:14]} Nxc1 {[%emt 0:00:40]} 27. Raxc1 {[%emt 0:00:50]} Bd3 {[%emt 0:01:32]} 28. Rf2 {[%emt 0:01:44]} Bc7 {[%emt 0:07:47]} 29. Nc5 {[%emt 0:02:52]} Bc4 {[%emt 0:03:09]} 30. Kf1 {[%emt 0:01:21]} Bb6 {[%emt 0:00:52]} 31. Nd7 {[%emt 0:00:07]} Bxf2 {[%emt 0:00:16]} 32. Nxf8 {[%emt 0:00:20]} Be3 {[%emt 0:00:32]} 0-1

[Event "Fagernes Open 2021"]
[Site "Fagernes"]
[Date "2021.10.16"]
[Round "8.16"]
[White "Wibe, Per H."]
[Black "Erikstad, Olav Aage"]
[Result "0-1"]
[ECO "B10"]
[WhiteElo "1755"]
[BlackElo "1761"]
[Annotator "NA"]
[PlyCount "38"]
[EventDate "2021.10.10"]
[EventCountry "NOR"]
[SourceTitle "playchess.com"]
[Source "ChessBase"]
[SourceQuality "1"]
[TimeControl "40/5400+30:1800+30"]

1. e4 {[%emt 0:06:24]} e5 {[%emt 0:00:00]} 2. c4 {[%emt 0:00:25]} c6 {[%emt 0:00:00]} 3. Nc3 {[%emt 0:00:49]} d5 {[%emt 0:00:00]} 4. cxd5 {[%emt 0:01:18]} cxd5 {[%emt 0:00:00]} 5. Nxd5 {[%emt 0:01:24]} Nf6 {[%emt 0:00:00]} 6. Nxf6+ {[%emt 0:01:38]} Qxf6 {[%emt 0:00:00]} 7. Nf3 {[%emt 0:00:49]} Nc6 {[%emt 0:00:00]} 8. Bb5 {[%emt 0:03:43]} Bg4 {[%emt 0:00:00]} 9. h3 {[%emt 0:04:42]} Bd7 {[%emt 0:00:00]} 10. d3 {[%emt 0:01:18]} h6 {[%emt 0:00:00]} 11. Be3 {[%emt 0:04:50]} Bb4+ {[%emt 0:00:00]} 12. Kf1 {[%emt 0:00:09]} O-O {[%emt 0:01:32]} 13. a3 {[%emt 0:03:44]} Be7 {[%emt 0:03:30]} 14. g3 {[%emt 0:03:48]} Rfd8 {[%emt 0:03:48]} 15. Nh4 {[%emt 0:03:46]} g5 {[%emt 0:03:16]} 16. Bxc6 {[%emt 0:01:55]} Bxc6 {[%emt 0:00:23]} 17. Nf5 {[%emt 0:00:39]} Bxe4 {[%emt 0:00:28]} 18. Rg1 {[%emt 0:00:37]} Bxd3+ {[%emt 0:00:19]} 19. Ke1 {[%emt 0:00:16]} Bxf5 {[%emt 0:00:17]} 0-1

[Event "Fagernes Open 2021"]
[Site "Fagernes"]
[Date "2021.10.16"]
[Round "8.17"]
[White "Galinsky, Misha"]
[Black "Hellesoy, David"]
[Result "0-1"]
[ECO "B63"]
[WhiteElo "1756"]
[BlackElo "1500"]
[Annotator "NA"]
[PlyCount "56"]
[EventDate "2021.10.10"]
[EventCountry "NOR"]
[SourceTitle "playchess.com"]
[Source "ChessBase"]
[SourceQuality "1"]
[TimeControl "40/5400+30:1800+30"]

1. e4 {[%emt 0:00:00]} c5 {[%emt 0:00:00]} 2. Nf3 {[%emt 0:00:00]} d6 {[%emt 0:00:00]} 3. d4 {[%emt 0:00:00]} cxd4 {[%emt 0:00:00]} 4. Nxd4 {[%emt 0:00:00]} Nf6 {[%emt 0:00:00]} 5. Nc3 {[%emt 0:00:00]} Nc6 {[%emt 0:00:00]} 6. Bg5 {[%emt 0:00:00]} e6 {[%emt 0:00:00]} 7. Qd2 {[%emt 0:00:00]} Be7 {[%emt 0:00:00]} 8. O-O-O {[%emt 0:00:00]} O-O {[%emt 0:00:00]} 9. h4 {[%emt 0:00:00]} Nxd4 {[%emt 0:00:00]} 10. Qxd4 {[%emt 0:00:00]} h6 {[%emt 0:02:21]} 11. Bxf6 {[%emt 0:05:48]} Bxf6 {[%emt 0:00:39]} 12. Qxd6 {[%emt 0:00:11]} Qa5 {[%emt 0:00:19]} 13. Qg3 {[%emt 0:00:13]} Bxc3 {[%emt 0:10:00]} 14. Qxc3 {[%emt 0:00:02]} Qxa2 {[%emt 0:00:32]} 15. Bc4 {[%emt 0:00:23]} Qa4 {[%emt 0:04:06]} 16. Kb1 {[%emt 0:21:47]} Qc6 {[%emt 0:07:48]} 17. Qd3 {[%emt 0:18:52]} a6 {[%emt 0:03:09]} 18. f3 {[%emt 0:01:00]} b5 {[%emt 0:01:25]} 19. Bb3 {[%emt 0:06:04]} a5 {[%emt 0:09:29]} 20. c3 {[%emt 0:30:06]} a4 {[%emt 0:02:26]} 21. Bc2 {[%emt 0:00:19]} f6 {[%emt 0:04:26]} 22. e5 {[%emt 0:02:23]} f5 {[%emt 0:00:18]} 23. g4 {[%emt 0:01:25]} Bb7 {[%emt 0:01:50]} 24. f4 {[%emt 0:09:00]} Qc7 {[%emt 0:01:59]} 25. Rhg1 {[%emt 0:00:58]} Be4 {[%emt 0:04:19]} 26. Qxb5 {[%emt 0:00:53]} Rfb8 {[%emt 0:03:11]} 27. Qe2 {[%emt 0:03:02]} a3 {[%emt 0:02:09]} 28. Kc1 {[%emt 0:01:19]} Rxb2 {[%emt 0:02:02]} 0-1

[Event "Fagernes Open 2021"]
[Site "Fagernes"]
[Date "2021.10.17"]
[Round "9.1"]
[White "Kreken, Eivind Grunt"]
[Black "Dahl, Torbjorn"]
[Result "1-0"]
[ECO "C41"]
[WhiteElo "1838"]
[BlackElo "1876"]
[Annotator "NA"]
[PlyCount "55"]
[EventDate "2021.10.10"]
[EventCountry "NOR"]
[SourceTitle "playchess.com"]
[Source "ChessBase"]
[SourceQuality "1"]
[TimeControl "40/5400+30:1800+30"]

1. e4 {[%emt 0:00:00]} d6 {[%emt 0:00:00]} 2. d4 {[%emt 0:00:00]} Nf6 {[%emt 0:00:00]} 3. Nc3 {[%emt 0:00:00]} Nbd7 {[%emt 0:00:00]} 4. Nf3 {[%emt 0:00:00]} e5 {[%emt 0:00:00]} 5. g4 {[%emt 0:00:00]} h6 {[%emt 0:00:00]} 6. g5 {[%emt 0:00:00]} hxg5 {[%emt 0:04:55]} 7. Bxg5 {[%emt 0:00:39]} c6 {[%emt 0:00:35]} 8. Qd2 {[%emt 0:20:46]} b5 {[%emt 0:02:25]} 9. a3 {[%emt 0:07:13]} a6 $11 {[%emt 0:04:18]} 10. O-O-O {[%emt 0:11:18]} Qc7 {[%emt 0:00:19]} 11. h4 {[%emt 0:19:06]} Be7 {[%emt 0:04:34]} 12. Bh3 {[%emt 0:01:42]} a5 {[%emt 0:02:13]} 13. Bxd7+ {[%emt 0:07:10]} Bxd7 {[%emt 0:02:29]} 14. dxe5 {[%emt 0:00:21]} dxe5 {[%emt 0:03:47]} 15. Nxe5 {[%emt 0:00:24]} b4 {[%emt 0:10:08]} 16. Bxf6 {[%emt 0:09:17]} Bxf6 {[%emt 0:26:05]} 17. Nxd7 {[%emt 0:07:42]} O-O-O {[%emt 0:01:46]} 18. Na4 {[%emt 0:01:09]} bxa3 {[%emt 0:19:56]} 19. bxa3 {[%emt 0:05:18]} Be5 {[%emt 0:09:00]} 20. Nab6+ {[%emt 0:01:11]} Kb7 {[%emt 0:00:35]} 21. Qxa5 {[%emt 0:00:38]} Bd6 {[%emt 0:02:06]} 22. Rxd6 {[%emt 0:01:02]} Rh5 {[%emt 0:03:27]} 23. Qxh5 {[%emt 0:00:41]} Qxd6 {[%emt 0:00:12]} 24. Qa5 {[%emt 0:01:01]} Qf4+ {[%emt 0:02:03]} 25. Kb1 {[%emt 0:00:27]} Qxf2 {[%emt 0:01:19]} 26. Nc5+ {[%emt 0:00:31]} Kc7 {[%emt 0:00:09]} 27. Qa7+ {[%emt 0:00:08]} Kd6 {[%emt 0:00:12]} 28. Nc4# {[%emt 0:00:04]} 1-0

[Event "Fagernes Open 2021"]
[Site "Fagernes"]
[Date "2021.10.17"]
[Round "9.2"]
[White "Krivenko, Dion"]
[Black "Pedersen, Max Moe"]
[Result "1/2-1/2"]
[ECO "B53"]
[WhiteElo "2045"]
[BlackElo "1837"]
[Annotator "NA"]
[PlyCount "53"]
[EventDate "2021.10.10"]
[EventCountry "NOR"]
[SourceTitle "playchess.com"]
[Source "ChessBase"]
[SourceQuality "1"]
[TimeControl "40/5400+30:1800+30"]

1. e4 {[%emt 0:00:00]} c5 {[%emt 0:00:00]} 2. Nf3 {[%emt 0:00:00]} d6 {[%emt 0:00:00]} 3. d4 {[%emt 0:00:00]} cxd4 {[%emt 0:00:00]} 4. Qxd4 {[%emt 0:00:00]} Nf6 {[%emt 0:00:00]} 5. Bb5+ {[%emt 0:00:00]} Bd7 {[%emt 0:00:00]} 6. Qc4 {[%emt 0:00:00]} a6 {[%emt 0:04:23]} 7. Bxd7+ {[%emt 0:00:00]} Nbxd7 {[%emt 0:00:09]} 8. Nc3 {[%emt 0:00:00]} g6 {[%emt 0:07:07]} 9. Bf4 {[%emt 0:06:40]} Bg7 {[%emt 0:08:57]} 10. O-O {[%emt 0:02:08]} O-O {[%emt 0:05:06]} 11. a4 {[%emt 0:07:42]} Rc8 {[%emt 0:05:14]} 12. Qe2 {[%emt 0:01:45]} Nb6 {[%emt 0:10:00]} 13. Rab1 {[%emt 0:11:41]} Qd7 {[%emt 0:06:42]} 14. Ra1 {[%emt 0:19:49]} Nh5 {[%emt 0:06:33]} 15. Be3 {[%emt 0:02:02]} Nc4 $17 {[%emt 0:00:20]} 16. Nd5 {[%emt 0:01:00]} e6 {[%emt 0:04:09]} 17. Nb6 {[%emt 0:02:36]} Nxb6 {[%emt 0:00:05]} 18. Bxb6 {[%emt 0:00:07]} Qc6 {[%emt 0:01:16]} 19. a5 {[%emt 0:01:56]} Qxc2 {[%emt 0:01:37]} 20. Qxc2 {[%emt 0:02:54]} Rxc2 {[%emt 0:01:45]} 21. Rad1 {[%emt 0:00:01]} Rxb2 {[%emt 0:05:55]} 22. Rxd6 {[%emt 0:01:53]} Nf6 {[%emt 0:00:51]} 23. Re1 {[%emt 0:03:30]} Rc8 {[%emt 0:02:16]} 24. h3 {[%emt 0:01:09]} Rb4 {[%emt 0:01:48]} 25. Red1 {[%emt 0:01:34]} Bf8 {[%emt 0:09:53]} 26. Rd8 {[%emt 0:01:28]} Rbc4 {[%emt 0:00:06]} 27. Ne5 {[%emt 0:10:24]} 1/2-1/2

[Event "Fagernes Open 2021"]
[Site "Fagernes"]
[Date "2021.10.17"]
[Round "9.3"]
[White "Amundsen, Ask"]
[Black "Myagmarsuren, Evsuld"]
[Result "1-0"]
[ECO "B90"]
[WhiteElo "1816"]
[BlackElo "1650"]
[Annotator "NA"]
[PlyCount "105"]
[EventDate "2021.10.10"]
[EventCountry "NOR"]
[SourceTitle "playchess.com"]
[Source "ChessBase"]
[SourceQuality "1"]
[TimeControl "40/5400+30:1800+30"]

1. e4 {[%emt 0:00:00]} c5 {[%emt 0:00:00]} 2. Nf3 {[%emt 0:00:00]} d6 {[%emt 0:00:00]} 3. d4 {[%emt 0:00:00]} cxd4 {[%emt 0:00:00]} 4. Nxd4 {[%emt 0:00:00]} Nf6 {[%emt 0:00:00]} 5. Nc3 {[%emt 0:00:00]} a6 {[%emt 0:00:00]} 6. Be3 {[%emt 0:00:00]} e5 {[%emt 0:00:00]} 7. Nb3 {[%emt 0:00:00]} Be6 {[%emt 0:00:00]} 8. f3 {[%emt 0:00:00]} Be7 {[%emt 0:00:00]} 9. Qd2 {[%emt 0:00:00]} Nbd7 {[%emt 0:00:00]} 10. O-O-O {[%emt 0:00:00]} O-O {[%emt 0:00:00]} 11. g4 {[%emt 0:00:00]} b5 {[%emt 0:00:00]} 12. h4 {[%emt 0:00:00]} b4 {[%emt 0:00:00]} 13. Nd5 {[%emt 0:00:00]} Bxd5 {[%emt 0:00:00]} 14. exd5 {[%emt 0:00:00]} a5 $1 {[%emt 0:02:08]} 15. g5 {[%emt 0:05:08]} Nh5 {[%emt 0:01:15]} 16. Bh3 {[%emt 0:02:07]} Nb6 {[%emt 0:03:33]} 17. Qd3 {[%emt 0:05:13]} a4 {[%emt 0:05:36]} 18. Nd2 {[%emt 0:03:07]} Ra5 $14 {[%emt 0:06:11]} (18... Qc7 $11) 19. Bxb6 {[%emt 0:24:06]} Qxb6 {[%emt 0:00:03]} 20. Nc4 {[%emt 0:00:28]} Qc5 {[%emt 0:00:08]} 21. Nxa5 {[%emt 0:00:16]} Qxa5 {[%emt 0:00:10]} 22. Qc4 {[%emt 0:03:46]} Nf4 {[%emt 0:07:47]} 23. Kb1 {[%emt 0:04:42]} Bd8 {[%emt 0:04:54]} 24. Bd7 {[%emt 0:04:14]} a3 {[%emt 0:03:32]} 25. Qb5 {[%emt 0:02:00]} Qa7 {[%emt 0:00:19]} 26. Bc6 {[%emt 0:03:54]} axb2 {[%emt 0:06:02]} 27. Qxb4 {[%emt 0:06:01]} Ba5 {[%emt 0:04:08]} 28. Qxd6 {[%emt 0:06:55]} Qe3 {[%emt 0:04:12]} 29. Bb5 {[%emt 0:04:29]} Rd8 {[%emt 0:05:07]} 30. Qe7 {[%emt 0:01:49]} Rb8 {[%emt 0:01:56]} 31. d6 {[%emt 0:14:48]} Ng6 {[%emt 0:09:01]} 32. Qd7 {[%emt 0:08:29]} Qb6 {[%emt 0:09:28]} 33. Bc4 {[%emt 0:01:14]} Rf8 {[%emt 0:02:10]} 34. h5 {[%emt 0:00:48]} Qc5 {[%emt 0:01:43]} 35. Bb3 {[%emt 0:01:05]} Nf4 {[%emt 0:00:20]} 36. Rh2 {[%emt 0:01:52]} Qc3 {[%emt 0:01:11]} 37. g6 {[%emt 0:01:05]} Qxf3 {[%emt 0:00:28]} 38. Rdh1 {[%emt 0:00:55]} Ne2 {[%emt 0:01:14]} 39. gxf7+ {[%emt 0:00:32]} Kh8 {[%emt 0:00:37]} 40. Qe8 {[%emt 0:00:46]} Nc3+ {[%emt 0:01:32]} 41. Kxb2 {[%emt 0:30:05]} Na4+ {[%emt 0:31:12]} 42. Bxa4 {[%emt 0:00:26]} Qc3+ {[%emt 0:00:10]} 43. Kb1 {[%emt 0:00:10]} Qb4+ {[%emt 0:00:05]} 44. Bb3 {[%emt 0:00:06]} Qxd6 {[%emt 0:00:12]} 45. Rg2 {[%emt 0:00:00]} Bc3 {[%emt 0:00:00]} 46. Qa4 {[%emt 0:00:00]} e4 {[%emt 0:00:00]} 47. Qc4 {[%emt 0:00:00]} Qe5 {[%emt 0:00:00]} 48. Re2 {[%emt 0:00:00]} e3 {[%emt 0:00:00]} 49. Qe6 {[%emt 0:00:00]} Qc5 {[%emt 0:00:00]} 50. Qxe3 {[%emt 0:00:00]} Qc6 {[%emt 0:00:00]} 51. Rf1 {[%emt 0:00:00]} h6 {[%emt 0:00:00]} 52. Qe8 {[%emt 0:00:00]} Qxe8 {[%emt 0:00:00]} 53. fxe8=Q {[%emt 0:00:00]} 1-0

[Event "Fagernes Open 2021"]
[Site "Fagernes"]
[Date "2021.10.17"]
[Round "9.4"]
[White "Kittilsen, Sigurd"]
[Black "Bronmo, Askild Skovgaard"]
[Result "1-0"]
[ECO "B38"]
[WhiteElo "1881"]
[BlackElo "1637"]
[Annotator "NA"]
[PlyCount "151"]
[EventDate "2021.10.10"]
[EventCountry "NOR"]
[SourceTitle "playchess.com"]
[Source "ChessBase"]
[SourceQuality "1"]
[TimeControl "40/5400+30:1800+30"]

1. e4 {[%emt 0:00:00]} c5 {[%emt 0:00:00]} 2. Nf3 {[%emt 0:00:00]} Nc6 {[%emt 0:00:00]} 3. d4 {[%emt 0:00:00]} cxd4 {[%emt 0:00:00]} 4. Nxd4 {[%emt 0:00:00]} g6 {[%emt 0:00:00]} 5. c4 {[%emt 0:00:00]} Bg7 {[%emt 0:00:00]} 6. Be3 {[%emt 0:00:00]} Nf6 {[%emt 0:00:00]} 7. Nc3 {[%emt 0:00:00]} O-O {[%emt 0:00:00]} 8. Be2 {[%emt 0:00:00]} d6 {[%emt 0:00:00]} 9. O-O {[%emt 0:00:00]} Nxd4 {[%emt 0:00:00]} 10. Bxd4 {[%emt 0:00:00]} Bd7 {[%emt 0:00:00]} 11. Qd2 {[%emt 0:00:00]} Bc6 {[%emt 0:00:00]} 12. f3 {[%emt 0:00:00]} a5 {[%emt 0:00:00]} 13. b3 {[%emt 0:00:00]} Nd7 {[%emt 0:00:42]} 14. Be3 {[%emt 0:00:00]} Nc5 {[%emt 0:02:29]} 15. Rac1 {[%emt 0:03:56]} Qd7 {[%emt 0:19:33]} 16. Rfd1 {[%emt 0:05:51]} Rfd8 {[%emt 0:04:28]} 17. Rc2 $14 {[%emt 0:06:55]} Ra6 {[%emt 0:05:26]} 18. Nd5 {[%emt 0:10:02]} Rc8 {[%emt 0:09:25]} 19. Qc1 {[%emt 0:22:30]} Qe8 {[%emt 0:05:38]} 20. Qa3 {[%emt 0:03:54]} Bd7 {[%emt 0:08:32]} 21. Bg5 {[%emt 0:05:34]} f6 {[%emt 0:05:52]} 22. Be3 {[%emt 0:06:12]} Be6 {[%emt 0:05:05]} 23. Rdc1 {[%emt 0:10:37]} h5 {[%emt 0:02:50]} 24. h4 {[%emt 0:03:32]} Kh7 {[%emt 0:00:55]} 25. Rd1 {[%emt 0:03:31]} Bh6 {[%emt 0:03:52]} 26. Nf4 {[%emt 0:01:59]} Qf7 {[%emt 0:04:35]} 27. Qc1 {[%emt 0:00:34]} Rg8 {[%emt 0:01:10]} 28. Kh1 {[%emt 0:01:40]} Bxf4 {[%emt 0:02:14]} 29. Bxf4 {[%emt 0:00:28]} Raa8 {[%emt 0:00:29]} 30. Rb2 {[%emt 0:05:36]} Rgc8 {[%emt 0:01:10]} 31. Qe3 {[%emt 0:02:08]} Qe8 {[%emt 0:02:37]} 32. Rc2 {[%emt 0:01:41]} Qf7 {[%emt 0:01:27]} 33. Qd4 {[%emt 0:02:04]} Bd7 {[%emt 0:01:54]} 34. Qd5 {[%emt 0:01:53]} Be6 {[%emt 0:01:18]} 35. Qd4 {[%emt 0:00:05]} Bd7 {[%emt 0:00:05]} 36. Be3 {[%emt 0:00:34]} Rc6 {[%emt 0:04:18]} 37. Qb2 {[%emt 0:00:59]} Be6 {[%emt 0:02:23]} 38. Kh2 {[%emt 0:00:55]} Rac8 {[%emt 0:01:12]} 39. Qa3 {[%emt 0:01:27]} b6 {[%emt 0:02:59]} 40. g3 {[%emt 0:01:29]} Nd7 {[%emt 0:02:07]} 41. f4 {[%emt 0:00:00]} Nc5 {[%emt 0:00:00]} 42. Bf3 {[%emt 0:00:00]} Bg4 {[%emt 0:00:00]} 43. Bxg4 {[%emt 0:05:01]} hxg4 {[%emt 0:00:00]} 44. Bxc5 {[%emt 0:02:50]} Rxc5 {[%emt 0:00:00]} 45. Re2 {[%emt 0:01:04]} Qe8 {[%emt 0:04:17]} 46. Rd5 {[%emt 0:06:42]} a4 {[%emt 0:08:31]} 47. Qb4 {[%emt 0:03:39]} Qc6 {[%emt 0:02:50]} 48. f5 {[%emt 0:03:57]} axb3 {[%emt 0:04:35]} 49. axb3 {[%emt 0:03:41]} gxf5 {[%emt 0:04:45]} 50. exf5 {[%emt 0:00:58]} Rc7 {[%emt 0:02:46]} 51. Qe1 {[%emt 0:01:13]} Qb7 {[%emt 0:01:16]} 52. Re4 {[%emt 0:03:04]} Rxd5 {[%emt 0:01:14]} 53. cxd5 {[%emt 0:00:40]} Qxd5 {[%emt 0:01:45]} 54. Rxe7+ {[%emt 0:00:13]} Rxe7 {[%emt 0:00:03]} 55. Qxe7+ {[%emt 0:00:10]} Kg8 {[%emt 0:00:07]} 56. Qe8+ {[%emt 0:01:10]} Kg7 {[%emt 0:00:24]} 57. Qg6+ {[%emt 0:00:04]} Kf8 {[%emt 0:00:11]} 58. Qxf6+ {[%emt 0:00:32]} Ke8 {[%emt 0:00:14]} 59. Qg6+ {[%emt 0:00:59]} Kd8 {[%emt 0:00:43]} 60. Qg5+ {[%emt 0:00:13]} Ke8 {[%emt 0:00:32]} 61. Qxg4 {[%emt 0:02:59]} Qxb3 {[%emt 0:00:27]} 62. Qg6+ {[%emt 0:02:44]} Kd7 {[%emt 0:00:35]} 63. h5 {[%emt 0:02:11]} Qc2+ {[%emt 0:02:27]} 64. Kh3 {[%emt 0:00:06]} Qe4 {[%emt 0:00:07]} 65. Qf7+ {[%emt 0:00:42]} Kc6 {[%emt 0:00:44]} 66. Qe6 {[%emt 0:00:43]} Qf3 {[%emt 0:01:16]} 67. Kh4 {[%emt 0:00:45]} b5 {[%emt 0:00:10]} 68. Qc8+ {[%emt 0:00:17]} Kb6 {[%emt 0:00:15]} 69. Qb8+ {[%emt 0:00:50]} Ka5 {[%emt 0:00:47]} 70. Qc7+ {[%emt 0:00:54]} Ka4 {[%emt 0:00:31]} 71. Qc2+ {[%emt 0:00:38]} Ka5 {[%emt 0:00:42]} 72. h6 {[%emt 0:00:36]} b4 {[%emt 0:00:25]} 73. Qc7+ {[%emt 0:00:19]} Ka4 {[%emt 0:00:14]} 74. Qd7+ {[%emt 0:00:11]} Ka3 {[%emt 0:00:26]} 75. h7 {[%emt 0:00:07]} Ka2 {[%emt 0:00:38]} 76. Qa4+ {[%emt 0:00:42]} 1-0

[Event "Fagernes Open 2021"]
[Site "Fagernes"]
[Date "2021.10.17"]
[Round "9.5"]
[White "Strand, Amund Pihl"]
[Black "Fiskaaen, Martin Holten"]
[Result "0-1"]
[ECO "A11"]
[WhiteElo "1712"]
[BlackElo "1829"]
[Annotator "NA"]
[PlyCount "54"]
[EventDate "2021.10.10"]
[EventCountry "NOR"]
[SourceTitle "playchess.com"]
[Source "ChessBase"]
[SourceQuality "1"]
[TimeControl "40/5400+30:1800+30"]

1. c4 {[%emt 0:00:00]} c6 {[%emt 0:00:00]} 2. Nf3 {[%emt 0:00:00]} d5 {[%emt 0:00:00]} 3. e3 {[%emt 0:00:00]} Nf6 {[%emt 0:00:00]} 4. Nc3 {[%emt 0:00:00]} e6 {[%emt 0:00:00]} 5. b3 {[%emt 0:00:00]} Nbd7 {[%emt 0:00:00]} 6. Bb2 {[%emt 0:01:24]} Bd6 {[%emt 0:00:00]} 7. Be2 {[%emt 0:10:14]} O-O {[%emt 0:00:00]} 8. O-O {[%emt 0:00:35]} b6 {[%emt 0:02:19]} 9. cxd5 {[%emt 0:02:56]} exd5 {[%emt 0:02:03]} 10. Rc1 {[%emt 0:05:23]} Bb7 {[%emt 0:01:04]} 11. d4 $11 {[%emt 0:17:15]} Rc8 {[%emt 0:02:15]} 12. Bd3 {[%emt 0:04:42]} Re8 {[%emt 0:02:09]} 13. Ne2 {[%emt 0:08:41]} Qe7 {[%emt 0:03:55]} 14. Ng3 {[%emt 0:01:53]} g6 {[%emt 0:00:15]} 15. Nd2 {[%emt 0:02:33]} h5 {[%emt 0:03:12]} 16. e4 {[%emt 0:08:20]} h4 {[%emt 0:07:01]} 17. e5 {[%emt 0:00:20]} hxg3 {[%emt 0:00:52]} 18. hxg3 {[%emt 0:00:31]} Nxe5 {[%emt 0:23:45]} 19. Re1 {[%emt 0:02:47]} Nxd3 {[%emt 0:00:33]} 20. Rxe7 {[%emt 0:01:42]} Rxe7 {[%emt 0:00:17]} 21. Nf1 {[%emt 0:11:22]} Nxc1 {[%emt 0:01:02]} 22. Bxc1 {[%emt 0:00:20]} c5 {[%emt 0:07:49]} 23. Ne3 {[%emt 0:01:27]} cxd4 {[%emt 0:00:58]} 24. Nc2 {[%emt 0:00:11]} Rxc2 {[%emt 0:04:43]} 25. Qxc2 {[%emt 0:00:23]} Re1+ {[%emt 0:00:07]} 26. Kh2 {[%emt 0:00:08]} Ng4+ {[%emt 0:00:08]} 27. Kh3 {[%emt 0:00:10]} f5 {[%emt 0:00:17]} 0-1